bitfinex-derivatives/quotes_BTCF0:USTF0_20250828
["timestamp","ask_amount","ask_price","bid_price","bid_amount"]
[1756342132044,0.87936,111500.0,111490.0,0.56667523]
[1756342132445,0.87936,111500.0,111490.0,0.64684435]
[1756342133346,0.90658,111500.0,111490.0,0.64684435]
[1756342137053,1.22658,111500.0,111490.0,0.64684435]
[1756342137249,1.22658,111500.0,111490.0,0.33172652]
[1756342137454,1.22658,111500.0,111490.0,0.64684435]
[1756342140156,0.06278,111500.0,111490.0,0.64684435]
[1756342140348,0.90654,111500.0,111490.0,0.64684435]
[1756342141155,1.19932,111500.0,111490.0,0.64684435]
[1756342141357,0.87932,111500.0,111490.0,0.64684435]
[1756342141754,0.84382,111500.0,111490.0,0.64684435]
[1756342142454,0.87912,111500.0,111490.0,0.64684435]
[1756342142657,0.0354,111500.0,111490.0,0.64684435]
[1756342143550,0.0354,111500.0,111490.0,0.91244435]
[1756342143747,0.0001,111500.0,111490.0,1.16244435]
[1756342144359,0.0001,111500.0,111490.0,1.08227523]
[1756342144559,0.0001,111500.0,111490.0,1.92599523]
[1756342145457,0.0001,111500.0,111490.0,1.08227523]
[1756342145659,0.0001,111500.0,111490.0,1.08127523]
[1756342145859,0.00621,111500.0,111490.0,1.08327523]
[1756342146052,0.06262,111500.0,111490.0,0.91378609]
[1756342147260,0.88042,111500.0,111490.0,0.82509869]
[1756342147465,0.88042,111500.0,111490.0,0.74458783]
[1756342147755,0.88042,111500.0,111490.0,0.74258783]
[1756342148061,1.13042,111500.0,111490.0,0.74358783]
[1756342148257,1.13042,111500.0,111490.0,0.83127623]
[1756342148657,1.13042,111500.0,111490.0,0.83027623]
[1756342148960,1.13142,111500.0,111490.0,0.83027623]
[1756342149462,1.13142,111500.0,111490.0,0.56467623]
[1756342150064,1.13142,111500.0,111490.0,0.40774783]
[1756342150265,1.13142,111500.0,111490.0,0.56238633]
[1756342151866,0.31362,111500.0,111490.0,0.56238633]
[1756342152160,0.0011,111500.0,111490.0,0.56238633]
[1756342152564,0.0011,111500.0,111490.0,0.89289719]
[1756342153771,0.03029,111500.0,111490.0,0.89389719]
[1756342154065,0.0364,111500.0,111490.0,0.64389719]
[1756342154366,0.06262,111500.0,111490.0,0.64489719]
[1756342154559,0.0354,111500.0,111490.0,0.64589719]
[1756342155468,0.0354,111500.0,111490.0,0.91149719]
[1756342156162,0.0001,111500.0,111490.0,0.91149719]
[1756342156468,0.0001,111500.0,111490.0,1.16149719]
[1756342156859,0.0001,111500.0,111490.0,1.16049719]
[1756342161775,0.05317507,111520.0,111510.0,0.2498223]
[1756342162067,0.14317507,111520.0,111510.0,0.56494013]
[1756342162275,0.13706507,111520.0,111510.0,0.56494013]
[1756342162474,0.10787507,111520.0,111510.0,0.56494013]
[1756342162771,0.13790616,111520.0,111510.0,0.56494013]
[1756342163174,0.16709616,111520.0,111510.0,0.56494013]
[1756342163572,0.04179616,111520.0,111510.0,0.56494013]
[1756342164167,0.04990616,111520.0,111510.0,0.56494013]
[1756342164366,0.02598507,111520.0,111510.0,0.56494013]
[1756342164972,0.02398507,111520.0,111510.0,0.56494013]
[1756342165172,0.02498507,111520.0,111510.0,0.56494013]
[1756342165367,0.05417507,111520.0,111510.0,0.56494013]
[1756342165563,0.05317507,111520.0,111510.0,0.56494013]
[1756342165767,0.05317507,111520.0,111510.0,0.56594013]
[1756342166174,0.02398507,111520.0,111510.0,0.56594013]
[1756342167174,0.02398507,111520.0,111510.0,0.56494013]
[1756342167364,0.02498507,111520.0,111510.0,0.56494013]
[1756342168371,0.05417507,111520.0,111510.0,0.2498223]
[1756342168572,0.05417507,111520.0,111510.0,0.56494013]
[1756342169474,0.001,111520.0,111510.0,0.88005796]
[1756342169673,0.001,111520.0,111510.0,0.58495553]
[1756342170172,0.001,111520.0,111510.0,0.2698377]
[1756342170372,0.001,111520.0,111510.0,0.58495553]
[1756342170677,0.001,111520.0,111510.0,0.58595553]
[1756342170880,0.00611,111530.0,111510.0,0.49257553]
[1756342171070,0.42786812,111530.0,111520.0,0.47461783]
[1756342171669,0.40397,111530.0,111520.0,0.47461783]
[1756342172679,0.40397,111530.0,111520.0,0.56428213]
[1756342173479,0.40497,111530.0,111520.0,0.87939996]
[1756342173677,0.371,111530.0,111520.0,0.87939996]
[1756342174280,0.37711,111530.0,111520.0,0.56428213]
[1756342174783,0.371,111530.0,111520.0,0.87939996]
[1756342174980,0.001,111530.0,111520.0,0.87939996]
[1756342175179,0.00711,111530.0,111520.0,0.2491643]
[1756342175381,0.001,111530.0,111520.0,0.56428213]
[1756342175978,0.00711,111530.0,111520.0,0.56428213]
[1756342176586,0.001,111530.0,111520.0,0.56428213]
[1756342176886,0.001,111530.0,111520.0,0.87939996]
[1756342177884,0.001,111530.0,111520.0,0.2491643]
[1756342178081,0.00711,111530.0,111520.0,0.87939996]
[1756342178878,0.001,111530.0,111520.0,0.87939996]
[1756342181892,0.001,111530.0,111520.0,0.56428213]
[1756342182088,0.0011,111530.0,111520.0,0.56428213]
[1756342182391,0.0011,111530.0,111520.0,0.87939996]
[1756342183179,0.0011,111530.0,111520.0,0.56428213]
[1756342183382,0.38721,111530.0,111520.0,0.56428213]
[1756342183582,0.3953,111530.0,111520.0,0.47461783]
[1756342183786,0.03507,111530.0,111520.0,0.47461783]
[1756342183990,0.41507,111530.0,111520.0,0.47461783]
[1756342184287,0.66219,111530.0,111520.0,0.12501]
[1756342184485,0.66219,111530.0,111520.0,0.1595]
[1756342184893,0.50436404,111530.0,111520.0,0.1595]
[1756342186290,0.50436404,111530.0,111520.0,0.12501]
[1756342186489,0.50436404,111530.0,111520.0,0.05046]
[1756342186490,0.81948187,111530.0,111520.0,0.05046]
[1756342187990,0.81948187,111530.0,111520.0,0.14082]
[1756342188191,0.81948187,111530.0,111520.0,0.1595]
[1756342188390,0.50436404,111530.0,111520.0,0.1595]
[1756342189289,0.50436404,111530.0,111520.0,0.05046]
[1756342189494,0.52826992,111530.0,111520.0,0.05046]
[1756342189793,0.04521,111510.0,111500.0,0.07795]
[1756342189999,1.23809,111510.0,111500.0,0.58970379]
[1756342190803,1.23809,111510.0,111500.0,0.27458596]
[1756342191095,1.23809,111510.0,111500.0,0.58970379]
[1756342191297,1.23809,111510.0,111500.0,0.59370379]
[1756342191791,1.23809,111510.0,111500.0,0.62208379]
[1756342192298,1.23909,111510.0,111500.0,0.61808379]
[1756342193194,1.23909,111510.0,111500.0,0.47461783]
[1756342193590,1.55420783,111510.0,111500.0,0.14346596]
[1756342193792,1.80420783,111510.0,111500.0,0.16554596]
[1756342194097,1.51297924,111510.0,111500.0,0.19392596]
[1756342194297,1.82809707,111510.0,111500.0,0.14346596]
[1756342194697,1.82869707,111510.0,111500.0,0.14346596]
[1756342196194,1.80480783,111510.0,111500.0,0.14346596]
[1756342196594,1.80480783,111510.0,111490.0,0.02848]
[1756342196801,0.36032783,111500.0,111490.0,0.19402596]
[1756342197001,0.72847452,111500.0,111490.0,0.21553596]
[1756342197300,0.41335669,111500.0,111490.0,0.21553596]
[1756342197501,0.41335669,111500.0,111490.0,0.18715596]
[1756342197705,0.41335669,111500.0,111490.0,0.21553596]
[1756342198302,0.41335669,111500.0,111490.0,0.28428596]
[1756342199297,0.41335669,111500.0,111490.0,0.21553596]
[1756342199603,0.41335669,111500.0,111490.0,0.28299596]
[1756342199801,0.41335669,111500.0,111490.0,0.30167596]
[1756342199994,0.41335669,111500.0,111490.0,0.14346596]
[1756342200195,0.97847452,111500.0,111490.0,0.14346596]
[1756342200391,1.50631669,111500.0,111490.0,0.30325596]
[1756342200802,1.50631669,111500.0,111490.0,0.16629596]
[1756342200998,1.82143452,111500.0,111490.0,0.16629596]
[1756342201194,1.47919669,111500.0,111470.0,0.14142]
[1756342201496,1.47919669,111500.0,111470.0,0.15979]
[1756342201497,0.06709914,111480.0,111470.0,0.15979]
[1756342201702,1.28061914,111480.0,111470.0,0.15979]
[1756342202096,2.1317448,111480.0,111460.0,0.0293]
[1756342202295,0.10546,111450.0,111440.0,0.05163]
[1756342202499,0.14311,111450.0,111440.0,0.41140783]
[1756342202996,0.21588153,111450.0,111440.0,0.41140783]
[1756342203202,0.91924153,111450.0,111440.0,0.12559]
[1756342203506,1.32595,111450.0,111440.0,0.44070783]
[1756342203706,1.32605,111450.0,111440.0,0.44070783]
[1756342204003,1.32605,111450.0,111440.0,0.12559]
[1756342204304,1.32605,111450.0,111440.0,0.47490783]
[1756342204604,1.32605,111450.0,111440.0,0.72490783]
[1756342204605,0.13921,111450.0,111440.0,0.72490783]
[1756342204809,2.40248,111450.0,111440.0,0.72490783]
[1756342205008,2.76417,111450.0,111440.0,0.72490783]
[1756342205302,2.76417,111450.0,111440.0,0.73090783]
[1756342205495,2.76417,111450.0,111440.0,0.73490783]
[1756342205695,2.41144,111450.0,111440.0,0.73490783]
[1756342206005,2.74144,111450.0,111440.0,0.73490783]
[1756342206607,2.75961,111450.0,111440.0,0.73490783]
[1756342206901,2.41128,111450.0,111440.0,0.82463643]
[1756342207403,1.61869066,111450.0,111440.0,1.13975426]
[1756342207705,0.03807968,111450.0,111440.0,1.1593899]
[1756342207898,0.09142,111450.0,111440.0,0.59427207]
[1756342208103,0.15655,111450.0,111440.0,0.59427207]
[1756342208307,0.12303,111450.0,111440.0,0.59427207]
[1756342208500,0.92814538,111460.0,111440.0,0.59427207]
[1756342208698,0.93323538,111460.0,111450.0,0.56462843]
[1756342208893,0.01829538,111460.0,111450.0,0.56462843]
[1756342209098,0.86309538,111460.0,111450.0,0.56462843]
[1756342209705,0.86313538,111460.0,111450.0,0.56462843]
[1756342209905,0.88407194,111460.0,111450.0,0.56462843]
[1756342210601,0.01829538,111460.0,111450.0,0.81462843]
[1756342210805,0.86297538,111460.0,111450.0,0.81462843]
[1756342211012,0.93312806,111460.0,111450.0,0.81462843]
[1756342211504,0.953488,111460.0,111450.0,0.82162843]
[1756342211698,0.953488,111460.0,111450.0,1.08722843]
[1756342211899,0.76425522,111460.0,111450.0,1.08722843]
[1756342212108,0.79336522,111460.0,111450.0,1.08722843]
[1756342212710,0.92080522,111460.0,111450.0,0.99750783]
[1756342213804,1.29080522,111460.0,111450.0,0.74750783]
[1756342214003,0.92080522,111460.0,111450.0,0.74750783]
[1756342215207,0.93906821,111460.0,111450.0,0.71820783]
[1756342215408,0.93906821,111460.0,111450.0,0.74750783]
[1756342216109,0.26532561,111460.0,111450.0,0.74750783]
[1756342216411,1.10976561,111460.0,111450.0,0.74750783]
[1756342217607,1.10976561,111460.0,111450.0,0.48190783]
[1756342223011,1.10976561,111460.0,111450.0,0.45260783]
[1756342224020,1.10976561,111460.0,111450.0,0.40003783]
[1756342224224,1.10976561,111460.0,111450.0,0.43423783]
[1756342224422,1.10976561,111460.0,111450.0,0.05166]
[1756342224623,1.10976561,111460.0,111450.0,0.43423783]
[1756342224818,0.26532561,111460.0,111450.0,0.45260783]
[1756342225113,1.10868561,111460.0,111450.0,0.57162843]
[1756342225919,0.26532561,111460.0,111450.0,0.57162843]
[1756342226113,1.10868561,111460.0,111450.0,0.57162843]
[1756342226416,1.10878561,111460.0,111450.0,0.57162843]
[1756342226616,0.20029561,111460.0,111450.0,0.82162843]
[1756342226819,1.04365561,111460.0,111450.0,0.82162843]
[1756342227006,1.07526561,111460.0,111450.0,0.82162843]
[1756342227818,1.07526561,111460.0,111450.0,0.5065106]
[1756342228017,1.04365561,111460.0,111450.0,0.82162843]
[1756342228714,0.98134561,111460.0,111450.0,0.82162843]
[1756342228921,0.10887561,111460.0,111450.0,1.08722843]
[1756342229111,0.08851567,111460.0,111450.0,1.08722843]
[1756342229711,0.11948914,111480.0,111450.0,1.08722843]
[1756342229914,1.10204711,111480.0,111470.0,0.56824233]
[1756342230115,1.10316711,111480.0,111470.0,0.56824233]
[1756342230410,1.10316711,111480.0,111470.0,0.45075783]
[1756342231117,0.25980711,111480.0,111470.0,0.45075783]
[1756342231418,1.10316711,111480.0,111470.0,0.41588783]
[1756342231618,1.10316711,111480.0,111470.0,0.36255783]
[1756342231815,1.10316711,111480.0,111470.0,0.34141783]
[1756342231816,1.68316711,111480.0,111470.0,0.34141783]
[1756342232117,1.99828494,111480.0,111470.0,0.002]
[1756342232719,2.02237487,111480.0,111470.0,0.002]
[1756342232915,2.04265354,111480.0,111470.0,0.002]
[1756342234514,1.72753571,111480.0,111470.0,0.002]
[1756342235119,2.04265354,111480.0,111470.0,0.002]
[1756342241617,2.04265354,111480.0,111450.0,0.03495]
[1756342241821,0.16785,111450.0,111440.0,0.73599347]
[1756342242117,1.34113,111450.0,111440.0,0.49817347]
[1756342242926,1.34113,111450.0,111440.0,0.50217347]
[1756342243318,1.34113,111450.0,111440.0,0.44452347]
[1756342243514,0.49785,111450.0,111440.0,0.47939347]
[1756342243721,0.16785,111450.0,111440.0,0.59690157]
[1756342244025,0.97659043,111450.0,111440.0,0.57726593]
[1756342244330,1.33659043,111450.0,111440.0,0.57726593]
[1756342244828,0.18587043,111450.0,111440.0,0.57726593]
[1756342245025,0.51071043,111450.0,111440.0,0.57726593]
[1756342245526,0.18587043,111450.0,111440.0,0.57726593]
[1756342246025,0.68019043,111450.0,111440.0,0.57726593]
[1756342246530,0.18587043,111450.0,111440.0,0.57726593]
[1756342246723,0.01802043,111450.0,111440.0,1.14238376]
[1756342247124,0.01802043,111450.0,111440.0,1.40798376]
[1756342247320,0.06607,111470.0,111460.0,0.089712]
[1756342247526,0.34777,111470.0,111460.0,0.56824983]
[1756342247826,1.01113,111470.0,111460.0,0.56824983]
[1756342248030,0.09575,111470.0,111460.0,0.56824983]
[1756342248326,0.09575,111470.0,111460.0,0.81824983]
[1756342248528,0.09585,111470.0,111460.0,0.81824983]
[1756342248730,0.07622,111470.0,111460.0,0.81824983]
[1756342248928,0.0001,111470.0,111460.0,0.82024983]
[1756342249421,0.16795,111470.0,111460.0,0.82224983]
[1756342251228,0.13076,111470.0,111460.0,0.82224983]
[1756342252532,0.16795,111470.0,111460.0,0.82224983]
[1756342252724,0.16795,111470.0,111460.0,0.41742]
[1756342253224,0.16795,111470.0,111460.0,0.48253783]
[1756342253531,0.16795,111470.0,111460.0,0.34341783]
[1756342253532,0.47795,111470.0,111460.0,0.34341783]
[1756342253823,0.47795,111470.0,111460.0,0.48253783]
[1756342254425,0.47795,111470.0,111460.0,0.45475783]
[1756342254621,0.47795,111470.0,111460.0,0.48253783]
[1756342255824,0.16795,111470.0,111460.0,0.48253783]
[1756342256030,1.01115,111470.0,111460.0,0.48253783]
[1756342256531,0.16795,111470.0,111460.0,0.41988783]
[1756342256732,1.32111,111470.0,111460.0,0.45475783]
[1756342256931,1.32111,111470.0,111460.0,0.47434662]
[1756342257922,1.32111,111470.0,111460.0,0.50212662]
[1756342258434,0.16795,111470.0,111460.0,0.59183852]
[1756342258634,1.01111,111470.0,111460.0,0.59183852]
[1756342258836,1.01107,111470.0,111460.0,0.59183852]
[1756342259728,1.37107,111470.0,111460.0,0.59183852]
[1756342260034,0.16795,111470.0,111460.0,0.59183852]
[1756342260332,0.13304,111470.0,111460.0,0.59183852]
[1756342260528,0.97616,111470.0,111460.0,0.59183852]
[1756342260833,1.3687,111470.0,111460.0,0.59183852]
[1756342261337,1.3687,111470.0,111460.0,0.50212662]
[1756342261831,1.3687,111470.0,111460.0,0.04788879]
[1756342262027,1.3687,111470.0,111460.0,0.02358879]
[1756342262234,1.93381783,111470.0,111460.0,0.02358879]
[1756342262725,1.93381783,111470.0,111450.0,0.0001]
[1756342262932,0.47522783,111460.0,111450.0,0.0001]
[1756342263135,0.16011,111450.0,111440.0,0.46845096]
[1756342263428,1.37329,111450.0,111440.0,0.38069096]
[1756342263635,1.68840783,111450.0,111440.0,0.02011313]
[1756342264029,1.68540783,111450.0,111440.0,0.02011313]
[1756342264228,1.93540783,111450.0,111440.0,0.02011313]
[1756342264432,0.77721,111450.0,111440.0,0.33523096]
[1756342264636,1.61829,111450.0,111440.0,0.44894096]
[1756342264938,1.61829,111450.0,111440.0,0.38569096]
[1756342265531,0.40521,111450.0,111440.0,0.41785096]
[1756342265837,1.61457,111450.0,111440.0,0.34323096]
[1756342266332,0.77521,111450.0,111440.0,0.34323096]
[1756342266532,1.56829,111450.0,111440.0,0.42085096]
[1756342266740,1.56829,111450.0,111440.0,0.34323096]
[1756342267337,1.56829,111450.0,111440.0,0.36561096]
[1756342267741,0.40521,111450.0,111440.0,0.38869096]
[1756342267931,1.24453,111450.0,111440.0,0.45694096]
[1756342268132,1.59453,111450.0,111440.0,0.14182313]
[1756342268439,1.59453,111450.0,111440.0,0.38869096]
[1756342269441,1.59453,111450.0,111440.0,0.36561096]
[1756342270040,1.59453,111450.0,111440.0,0.05049313]
[1756342270640,0.40521,111450.0,111440.0,0.05049313]
[1756342270841,1.58449,111450.0,111440.0,0.10573313]
[1756342271245,1.58449,111450.0,111440.0,0.14182313]
[1756342271439,1.58449,111450.0,111440.0,0.10573313]
[1756342271640,1.58449,111450.0,111440.0,0.07357313]
[1756342271838,1.89960783,111450.0,111440.0,0.02811313]
[1756342272038,1.64960783,111450.0,111440.0,0.02811313]
[1756342273143,1.64960783,111450.0,111440.0,0.02511313]
[1756342273339,1.89960783,111450.0,111440.0,0.02511313]
[1756342273540,1.90260783,111450.0,111440.0,0.02011313]
[1756342273733,1.90260783,111450.0,111430.0,0.0001]
[1756342273934,0.47522783,111440.0,111430.0,0.0001]
[1756342274141,0.85344151,111440.0,111420.0,0.01986678]
[1756342274342,1.31830783,111430.0,111420.0,0.01986678]
[1756342274641,0.16011,111420.0,111410.0,0.0001]
[1756342274842,0.16011,111410.0,111400.0,0.47584783]
[1756342275044,0.16021,111410.0,111400.0,0.47574783]
[1756342275240,1.00093,111410.0,111400.0,0.47574783]
[1756342275447,1.00333,111410.0,111400.0,0.47574783]
[1756342276044,1.39675215,111410.0,111400.0,0.47574783]
[1756342276246,0.25327584,111410.0,111400.0,0.56550733]
[1756342276437,1.09639584,111410.0,111400.0,0.56550733]
[1756342276638,1.46739584,111410.0,111400.0,0.56550733]
[1756342277135,1.09739584,111410.0,111400.0,0.47574783]
[1756342277647,1.09739584,111410.0,111400.0,0.56550793]
[1756342278547,1.09743584,111410.0,111400.0,0.56550793]
[1756342278847,1.09743584,111410.0,111400.0,0.47574783]
[1756342280843,0.25427584,111410.0,111400.0,0.56550793]
[1756342281052,1.09743584,111410.0,111400.0,0.56550793]
[1756342282151,0.25427584,111410.0,111400.0,0.56550793]
[1756342282452,1.09743584,111410.0,111400.0,0.56550793]
[1756342284052,0.25427584,111410.0,111400.0,0.56550793]
[1756342284255,1.09743584,111410.0,111400.0,0.56550793]
[1756342286246,1.09743584,111410.0,111400.0,0.31511783]
[1756342286447,0.16011,111400.0,111390.0,0.7337798]
[1756342286651,0.16021,111400.0,111390.0,0.7336798]
[1756342286957,0.16021,111400.0,111390.0,0.04222197]
[1756342287155,0.54021,111400.0,111390.0,0.04222197]
[1756342287545,0.02731,111390.0,111380.0,0.05857]
[1756342287749,1.38333,111390.0,111380.0,0.36057783]
[1756342287950,1.38333,111390.0,111380.0,0.04546]
[1756342288151,1.38333,111390.0,111380.0,0.02238]
[1756342288556,0.16021,111390.0,111380.0,0.02238]
[1756342288857,1.00333,111390.0,111380.0,0.02238]
[1756342289253,1.31333,111390.0,111380.0,0.02238]
[1756342289458,1.31333,111390.0,111380.0,0.001]
[1756342290258,1.34337,111390.0,111380.0,0.001]
[1756342290653,1.65848783,111390.0,111380.0,0.001]
[1756342291157,0.16021,111390.0,111380.0,0.001]
[1756342291356,1.00337,111390.0,111380.0,0.001]
[1756342291659,1.34337,111390.0,111380.0,0.001]
[1756342292360,0.47021,111390.0,111380.0,0.001]
[1756342292559,1.31337,111390.0,111380.0,0.001]
[1756342292858,1.62848783,111390.0,111380.0,0.001]
[1756342293356,1.31337,111390.0,111380.0,0.001]
[1756342294553,1.62848783,111390.0,111380.0,0.001]
[1756342294859,1.87848783,111390.0,111380.0,0.001]
[1756342295254,1.87848783,111390.0,111370.0,0.0001]
[1756342295460,0.1579,111380.0,111370.0,0.0001]
[1756342295654,0.1579,111380.0,111360.0,0.50223878]
[1756342295655,0.1579,111370.0,111360.0,0.50223878]
[1756342295856,1.32116,111370.0,111360.0,0.50213878]
[1756342296056,1.32116,111370.0,111360.0,0.44590648]
[1756342296859,1.32116,111370.0,111360.0,0.14906865]
[1756342297057,1.32116,111370.0,111360.0,0.46418648]
[1756342297261,1.00116,111370.0,111360.0,0.26641095]
[1756342297457,1.00116,111370.0,111360.0,0.58152878]
[1756342298164,1.00116,111370.0,111360.0,0.26641095]
[1756342298359,1.00116,111370.0,111360.0,0.58252878]
[1756342298554,0.158,111370.0,111360.0,0.58252878]
[1756342298760,1.0012,111370.0,111360.0,0.58252878]
[1756342299158,1.0012,111370.0,111360.0,0.26741095]
[1756342299359,1.0012,111370.0,111360.0,0.58252878]
[1756342299863,0.158,111370.0,111360.0,0.58252878]
[1756342300061,0.92564,111370.0,111360.0,0.58252878]
[1756342300358,0.10659,111370.0,111360.0,1.14764661]
[1756342300559,0.0724,111370.0,111360.0,1.14764661]
[1756342300963,0.10439,111370.0,111360.0,1.14764661]
[1756342301860,0.0724,111370.0,111360.0,1.14764661]
[1756342302766,0.0001,111370.0,111360.0,1.14764661]
[1756342303260,0.02715,111390.0,111380.0,0.2464062]
[1756342303560,1.88305288,111400.0,111390.0,0.2463982]
[1756342303766,2.72625288,111400.0,111390.0,0.56151603]
[1756342305265,2.72825288,111400.0,111390.0,0.56151603]
[1756342306165,2.73125288,111400.0,111390.0,0.56151603]
[1756342306372,1.88805288,111400.0,111390.0,0.56151603]
[1756342306565,3.05121288,111400.0,111390.0,0.56151603]
[1756342306964,3.05121288,111400.0,111390.0,0.53396603]
[1756342309167,3.05121288,111400.0,111390.0,0.56151603]
[1756342309765,0.02287288,111400.0,111390.0,0.56151603]
[1756342310071,0.04992288,111400.0,111390.0,0.81151603]
[1756342310262,0.02287288,111400.0,111390.0,0.81151603]
[1756342310462,0.09517288,111400.0,111390.0,0.81151603]
[1756342310662,0.12716288,111400.0,111390.0,0.81151603]
[1756342311065,0.09517288,111400.0,111390.0,0.81151603]
[1756342311269,0.07219288,111400.0,111390.0,0.81151603]
[1756342311471,0.12716288,111400.0,111390.0,0.81151603]
[1756342311671,0.09517288,111400.0,111390.0,0.81151603]
[1756342311866,0.02287288,111400.0,111390.0,1.12663386]
[1756342312069,0.01987288,111400.0,111390.0,1.12663386]
[1756342312272,0.02187288,111400.0,111390.0,0.81151603]
[1756342312976,0.02087288,111400.0,111390.0,0.81151603]
[1756342313275,0.02087288,111400.0,111390.0,0.56151603]
[1756342313874,0.02087288,111400.0,111390.0,1.12663386]
[1756342315077,0.01887288,111400.0,111390.0,1.39223386]
[1756342316071,0.07342215,111410.0,111390.0,1.39223386]
[1756342316377,0.15659589,111420.0,111410.0,0.2463824]
[1756342316577,0.17601589,111420.0,111410.0,0.56150023]
[1756342317177,0.14182589,111420.0,111410.0,0.56150023]
[1756342317579,0.10983589,111420.0,111410.0,0.56150023]
[1756342317773,0.14182589,111420.0,111410.0,0.56150023]
[1756342317973,0.17601589,111420.0,111410.0,0.56150023]
[1756342318370,0.14182589,111420.0,111410.0,0.56150023]
[1756342318774,0.04816589,111420.0,111410.0,0.56150023]
[1756342318975,0.02311589,111420.0,111410.0,0.56150023]
[1756342319178,0.07444589,111420.0,111410.0,0.82710023]
[1756342319675,0.12830589,111420.0,111410.0,0.82710023]
[1756342320171,0.07517786,111420.0,111410.0,1.07710023]
[1756342320376,0.07517786,111420.0,111410.0,1.91994023]
[1756342320873,0.01244786,111420.0,111410.0,1.91994023]
[1756342321075,0.99997,111440.0,111430.0,0.1940963]
[1756342321375,0.99987,111440.0,111430.0,0.50921413]
[1756342321576,0.99987,111440.0,111430.0,0.1940963]
[1756342321887,0.99987,111440.0,111430.0,0.50921413]
[1756342322083,0.99997,111440.0,111430.0,0.50921413]
[1756342322390,1.00497,111440.0,111430.0,0.50921413]
[1756342322772,1.00797,111440.0,111430.0,0.50921413]
[1756342324387,1.07813527,111440.0,111430.0,0.50921413]
[1756342327186,0.23529527,111440.0,111430.0,0.50921413]
[1756342327380,0.07826527,111440.0,111430.0,0.82433196]
[1756342327588,0.07826527,111440.0,111430.0,1.33993196]
[1756342328086,0.10584527,111440.0,111430.0,1.02481413]
[1756342328481,0.07826527,111440.0,111430.0,1.02481413]
[1756342328888,0.07826527,111440.0,111430.0,1.33993196]
[1756342329484,0.07826527,111440.0,111430.0,1.02481413]
[1756342330086,0.13822527,111440.0,111430.0,1.02481413]
[1756342330476,0.17176527,111440.0,111430.0,1.02481413]
[1756342332388,0.13822527,111440.0,111430.0,1.02481413]
[1756342333282,0.17176527,111440.0,111430.0,1.86729413]
[1756342333682,0.17176527,111440.0,111430.0,1.02481413]
[1756342333982,0.23529527,111440.0,111430.0,0.77481413]
[1756342334187,0.07826527,111440.0,111430.0,0.77481413]
[1756342334580,0.07826527,111440.0,111430.0,1.08993196]
[1756342335090,0.18345527,111440.0,111430.0,0.77481413]
[1756342335490,0.89604778,111460.0,111450.0,0.2494909]
[1756342335682,1.28742778,111460.0,111450.0,0.56460873]
[1756342336389,0.44498778,111460.0,111450.0,0.56460873]
[1756342336889,0.44998778,111460.0,111450.0,0.2494909]
[1756342337187,0.52077919,111460.0,111450.0,0.56460873]
[1756342337390,0.59832901,111460.0,111450.0,0.56460873]
[1756342337590,0.63070901,111460.0,111450.0,0.56460873]
[1756342338287,0.63470901,111460.0,111450.0,0.2494909]
[1756342338487,0.88470901,111460.0,111450.0,0.33912783]
[1756342338683,0.15703,111450.0,111440.0,0.11008823]
[1756342338885,1.32939,111450.0,111440.0,0.44921606]
[1756342339280,0.15703,111450.0,111440.0,0.58497606]
[1756342339592,0.99939,111450.0,111440.0,0.58497606]
[1756342340090,0.15703,111450.0,111440.0,0.58497606]
[1756342340887,0.02148,111450.0,111440.0,0.58497606]
[1756342341089,0.05386,111450.0,111440.0,0.58497606]
[1756342341285,0.02148,111450.0,111440.0,0.58497606]
[1756342341486,1.02610901,111460.0,111450.0,0.2494913]
[1756342341784,1.39011373,111460.0,111450.0,0.56460913]
[1756342341983,0.61971373,111460.0,111450.0,0.56460913]
[1756342342694,0.62071373,111460.0,111450.0,0.56460913]
[1756342343191,0.62071373,111460.0,111450.0,0.83020913]
[1756342343392,0.36670901,111460.0,111450.0,0.83020913]
[1756342343584,0.27320901,111460.0,111450.0,0.83020913]
[1756342343783,0.08324919,111460.0,111450.0,0.83020913]
[1756342343984,0.10472919,111460.0,111450.0,0.83020913]
[1756342344189,0.15388146,111460.0,111450.0,0.56460913]
[1756342344391,0.17763146,111460.0,111450.0,0.56460913]
[1756342345090,0.25705146,111460.0,111450.0,0.56560913]
[1756342345287,0.25705146,111460.0,111450.0,0.1147316]
[1756342345485,0.25605146,111460.0,111450.0,0.0917216]
[1756342345790,0.58605146,111460.0,111450.0,0.43084943]
[1756342345989,0.50605146,111460.0,111450.0,0.1157316]
[1756342346190,0.50605146,111460.0,111450.0,0.43084943]
[1756342346488,1.13116929,111460.0,111450.0,0.0897216]
[1756342346689,0.15703,111450.0,111440.0,0.54424196]
[1756342346989,0.15703,111450.0,111440.0,0.51133196]
[1756342347294,1.09829146,111460.0,111450.0,0.2494916]
[1756342347491,1.09929146,111460.0,111450.0,0.0897216]
[1756342347796,1.09929146,111460.0,111450.0,0.40483943]
[1756342347997,1.40929146,111460.0,111450.0,0.42884943]
[1756342348192,1.09829146,111460.0,111450.0,0.56460943]
[1756342348389,1.09929146,111460.0,111450.0,0.56460943]
[1756342348993,1.09829146,111460.0,111450.0,0.56460943]
[1756342349190,1.12334033,111460.0,111450.0,0.56460943]
[1756342350294,1.12330033,111460.0,111450.0,0.56460943]
[1756342351299,1.09925146,111460.0,111450.0,0.56460943]
[1756342351799,1.45925146,111460.0,111450.0,0.56460943]
[1756342352000,1.4833012,111460.0,111450.0,0.56460943]
[1756342353204,0.28110244,111460.0,111450.0,0.56460943]
[1756342353401,1.09921146,111460.0,111450.0,0.56460943]
[1756342353598,1.46921146,111460.0,111450.0,0.56460943]
[1756342354496,1.06683146,111460.0,111450.0,0.56460943]
[1756342354797,1.10079146,111460.0,111450.0,0.56460943]
[1756342355404,0.25863146,111460.0,111450.0,0.56460943]
[1756342355703,1.10075146,111460.0,111450.0,0.56460943]
[1756342357504,0.22477146,111460.0,111450.0,0.56460943]
[1756342357703,1.00577146,111460.0,111450.0,0.56460943]
[1756342357903,1.03963146,111460.0,111450.0,0.56460943]
[1756342358104,0.25972146,111460.0,111450.0,0.56460943]
[1756342358305,1.10180146,111460.0,111450.0,0.56460943]
[1756342363111,1.10180146,111460.0,111450.0,0.2165816]
[1756342363303,1.10180146,111460.0,111450.0,0.53169943]
[1756342363603,1.10180146,111460.0,111450.0,0.56646943]
[1756342363812,1.10180146,111460.0,111450.0,0.36765783]
[1756342364111,1.10180146,111460.0,111450.0,0.49702193]
[1756342366116,1.44180146,111460.0,111450.0,0.53082193]
[1756342366305,1.10180146,111460.0,111450.0,0.56559193]
[1756342366505,1.10180146,111460.0,111450.0,0.49702193]
[1756342366706,1.41180146,111460.0,111450.0,0.49702193]